[Event "FIDE World Rapid-ch Open 2018"]
[White "Bindrich, Falko"]
[Black "Sharma, Dinesh K."]
[Site "St. Petersburg"]
[Round "5.60"]
[Annotator "RC"]
[Result "1-0"]
[Date "2018.12.26"]
[WhiteElo "2606"]
[BlackElo "2295"]
[PlyCount "149"]
[TimeControl "900+10"]

1. d4 {[%emt 0:0:0]} d5 {[%emt 0:0:0]} 2. c4 {[%emt 0:0:0]} c6 {[%emt 0:0:0]} 3. e3 {[%emt 0:0:2]} Nf6 {[%emt 0:0:0]} 4. Nf3 {[%emt 0:0:2]} Bf5 {[%emt 0:0:0]} 5. Nc3 {[%emt 0:0:2]} e6 {[%emt 0:0:0]} 6. Nh4 {[%emt 0:0:0]} Be4 {[%emt 0:0:2]} 7. f3 {[%emt 0:0:12]} Bg6 {[%emt 0:0:2]} 8. Qb3 {[%emt 0:0:3]} Qb6 {[%emt 0:0:2]} 9. Nxg6 {[%emt 0:0:14]} hxg6 {[%emt 0:0:0]} 10. g3 {[%emt 0:0:5]} Nbd7 {[%emt 0:0:6]} 11. Kf2 {[%emt 0:0:35]} Be7 {[%emt 0:0:39]} 12. Bd2 {[%emt 0:0:6]} g5 {[%emt 0:1:8]} 13. Be2 {[%emt 0:0:12]
} Qxb3 {[%emt 0:1:49]} 14. axb3 {[%emt 0:0:2]} a6 {[%emt 0:0:0]} 15. Kg2 {[%emt 0:0:41]} 0-0-0 {[%emt 0:0:37]} 16. Rac1 {[%emt 0:3:17]} Kb8 {[%emt 0:0:8]} 17. e4 {[%emt 0:0:45]} dxe4 {[%emt 0:0:12]} 18. fxe4 {[%emt 0:0:12]
} Nc5 {[%emt 0:0:38]} 19. e5 {[%emt 0:0:20]} Ng8 {[%emt 0:0:0]} 20. Be3 {[%emt 0:1:5]} Nxb3 {[%emt 0:0:8]} 21. Rcd1 {[%emt 0:0:1]} f5 {[%emt 0:0:30]} 22. c5 {[%emt 0:1:12]} Nh6 {[%emt 0:0:32]} 23. Bc4 {[%emt 0:0:20]
} f4 {[%emt 0:0:8]} 24. Bxb3 {[%emt 0:1:11]} fxe3 {[%emt 0:0:0]} 25. Bxe6 {[%emt 0:0:3]} Rhf8 {[%emt 0:0:32]} 26. Ne4 {[%emt 0:0:17]} Nf5 {[%emt 0:0:24]} 27. Bxf5 {[%emt 0:0:18]} Rxf5 {[%emt 0:0:6]} 28. Rhe1 {[%emt 0:0:8]
} g4 {[%emt 0:0:16]} 29. h3 {[%emt 0:1:5]} gxh3+ {[%emt 0:0:0]} 30. Kxh3 {[%emt 0:0:1]} Rh5+ {[%emt 0:0:29]} 31. Kg4 {[%emt 0:1:5]} Rh2 {[%emt 0:0:3]} 32. b3 {[%emt 0:0:4]} e2 {[%emt 0:1:22]} 33. Rd2 {[%emt 0:0:5]
} Kc7 {[%emt 0:0:29]} 34. Nd6 {[%emt 0:0:29]} b6 {[%emt 0:0:0]} 35. Rdxe2 {[%emt 0:0:4]} Rxe2 {[%emt 0:0:11]} 36. Rxe2 {[%emt 0:0:1]} bxc5 {[%emt 0:0:2]} 37. dxc5 {[%emt 0:1:24]} g6 {[%emt 0:0:2]} 38. Ra2 {[%emt 0:0:41]
} Rb8 {[%emt 0:0:10]} 39. Rxa6 {[%emt 0:0:10]} Rb4+ {[%emt 0:0:0]} 40. Kh3 {[%emt 0:0:2]} Kd7 {[%emt 0:0:12]} 41. Rb6 {[%emt 0:0:30]} Rd4 {[%emt 0:0:18]} 42. b4 {[%emt 0:0:52]} Bd8 {[%emt 0:0:24]} 43. Rb8 {[%emt 0:0:28]
} Be7 {[%emt 0:0:20]} 44. Rg8 {[%emt 0:1:6]} Ke6 {[%emt 0:0:0]} 45. Rxg6+ {[%emt 0:1:6]} Kxe5 {[%emt 0:0:4]} 46. Rg4 {[%emt 0:0:16]} Rd1 {[%emt 0:0:20]} 47. Re4+ {[%emt 0:0:1]} Kf6 {[%emt 0:0:1]} 48. Nc4 {[%emt 0:0:10]
} Bd8 {[%emt 0:0:30]} 49. Ne5 {[%emt 0:0:38]} Kf5 {[%emt 0:0:0]} 50. Re2 {[%emt 0:0:1]} Bc7 {[%emt 0:0:15]} 51. Nxc6 {[%emt 0:0:20]} Rd3 {[%emt 0:0:6]} 52. Rg2 {[%emt 0:0:32]} Kg5 {[%emt 0:0:3]} 53. b5 {[%emt 0:0:37]
} Rc3 {[%emt 0:0:2]} 54. b6 {[%emt 0:0:25]} Rxc5 {[%emt 0:0:0]} 55. Nd4 {[%emt 0:0:1]} Kg6 {[%emt 0:1:33]} 56. bxc7 {[%emt 0:0:2]} Rxc7 {[%emt 0:0:3]} 57. Rf2 {[%emt 0:0:3]} Rd7 {[%emt 0:0:3]} 58. Rf4 {[%emt 0:0:1]
} Rd5 {[%emt 0:0:4]} 59. Nf3 {[%emt 0:0:1]} Rh5+ {[%emt 0:0:0]} 60. Kg2 {[%emt 0:0:2]} Ra5 {[%emt 0:0:2]} 61. g4 {[%emt 0:0:1]} Rb5 {[%emt 0:0:1]} 62. Kg3 {[%emt 0:0:1]} Ra5 {[%emt 0:0:1]} 63. Nh4+ {[%emt 0:0:6]
} Kg7 {[%emt 0:0:4]} 64. Rf5 {[%emt 0:0:2]} Ra4 {[%emt 0:0:0]} 65. Nf3 {[%emt 0:0:4]} Kg6 {[%emt 0:0:5]} 66. Ne5+ {[%emt 0:0:2]} Kg7 {[%emt 0:0:1]} 67. Kh4 {[%emt 0:0:6]} Ra5 {[%emt 0:0:5]} 68. Kg5 {[%emt 0:0:3]
} Rb5 {[%emt 0:0:5]} 69. Rf7+ {[%emt 0:0:8]} Kg8 {[%emt 0:0:0]} 70. Re7 {[%emt 0:0:6]} Kf8 {[%emt 0:0:7]} 71. Kf6 {[%emt 0:0:7]} Rb6+ {[%emt 0:0:4]} 72. Re6 {[%emt 0:0:2]} Rb7 {[%emt 0:0:14]} 73. Ng6+ {[%emt 0:0:5]
} Kg8 {[%emt 0:0:1]} 74. Re8+ {[%emt 0:0:1]} Kh7 {[%emt 0:0:0]} 75. Rh8# {[%emt 0:0:1]} 1-0

[Event "FIDE World Rapid-ch Open 2018"]
[White "Moiseenko, Vadim"]
[Black "Pershin, Denis"]
[Site "St. Petersburg"]
[Round "5.61"]
[Annotator "ChessBase"]
[Result "0-1"]
[Date "2018.12.26"]
[WhiteElo "2501"]
[BlackElo "2400"]
[PlyCount "54"]
[TimeControl "900+10"]

1. e4 {[%emt 0:0:0]} c6 {[%emt 0:0:0]} 2. Nc3 {[%emt 0:0:15]} d5 {[%emt 0:0:0]} 3. Nf3 {[%emt 0:0:6]} Bg4 {[%emt 0:0:0]} 4. Be2 {[%emt 0:0:24]} Nf6 {[%emt 0:1:26]} 5. h3 {[%emt 0:0:20]} Bxf3 {[%emt 0:0:38]} 6. Bxf3 {[%emt 0:0:1]
} e6 {[%emt 0:0:7]} 7. 0-0 {[%emt 0:0:13]} Be7 {[%emt 0:0:37]
} 8. d4 {[%emt 0:0:6]} dxe4 {[%emt 0:0:55]} 9. Nxe4 {[%emt 0:0:1]} Nxe4 {[%emt 0:0:1]
} 10. Bxe4 {[%emt 0:0:2]} Nd7 {[%emt 0:0:1]} 11. c4 {[%emt 0:0:0]} Nf6 {[%emt 0:0:5]} 12. Bc2 {[%emt 0:0:11]} 0-0 {[%emt 0:0:6]} 13. b3 {[%emt 0:0:2]} Qa5 {[%emt 0:1:45]} 14. a3 {[%emt 0:0:26]} Rfd8 {[%emt 0:0:0]} 15. Bb2 {[%emt 0:0:17]} Rd7 {[%emt 0:1:46]} 16. Re1 {[%emt 0:0:57]} Rad8 {[%emt 0:0:21]} 17. Qf3 {[%emt 0:0:39]} Ne8 {[%emt 0:1:37]} 18. Re5 {[%emt 0:0:42]
} Qc7 {[%emt 0:0:1]} 19. Rh5 {[%emt 0:4:50]} h6 {[%emt 0:0:0]} 20. Re1 {[%emt 0:1:18]} Bf6 {[%emt 0:0:31]} 21. Qe4 {[%emt 0:0:12]} Bxd4 {[%emt 0:0:4]} 22. Bxd4 {[%emt 0:1:56]} Rxd4 {[%emt 0:0:2]} 23. Qh7+ {[%emt 0:0:2]} Kf8 {[%emt 0:0:1]} 24. Rhe5 {[%emt 0:0:19]} Rd2 {[%emt 0:0:0]} 25. Bf5 {[%emt 0:0:39]} Rd1 {[%emt 0:0:37]} 26. R5e3 {[%emt 0:0:55]} Rxe1+ {[%emt 0:0:4]} 27. Rxe1 {[%emt 0:0:1]} Qa5 {[%emt 0:0:7]} 0-1

[Event "FIDE World Rapid-ch Open 2018"]
[White "AL-Sayed, Mohammed"]
[Black "Yuffa, Daniil"]
[Site "St. Petersburg"]
[Round "5.62"]
[Annotator "ChessBase"]
[Result "1-0"]
[Date "2018.12.26"]
[WhiteElo "2484"]
[BlackElo "2572"]
[PlyCount "73"]
[TimeControl "900+10"]

1. e4 {[%emt 0:0:0]} c5 {[%emt 0:0:15]} 2. Nf3 {[%emt 0:0:0]} d6 {[%emt 0:0:0]} 3. Bb5+ {[%emt 0:0:27]} Nd7 {[%emt 0:0:2]} 4. Ba4 {[%emt 0:0:27]} Ngf6 {[%emt 0:0:29]} 5. Qe2 {[%emt 0:0:32]} g6 {[%emt 0:2:24]} 6. 0-0 {[%emt 0:0:9]
} Bg7 {[%emt 0:0:2]} 7. c3 {[%emt 0:0:7]} 0-0 {[%emt 0:0:2]
} 8. d4 {[%emt 0:0:8]} Nb6 {[%emt 0:0:41]} 9. Bb3 {[%emt 0:0:17]} cxd4 {[%emt 0:1:46]
} 10. cxd4 {[%emt 0:0:2]} a5 {[%emt 0:0:1]} 11. a4 {[%emt 0:0:0]} Bg4 {[%emt 0:1:1]} 12. Nc3 {[%emt 0:0:19]} Nfd7 {[%emt 0:0:28]} 13. Be3 {[%emt 0:0:10]} e5 {[%emt 0:1:0]} 14. Rfd1 {[%emt 0:0:45]} exd4 {[%emt 0:0:22]
} 15. Bxd4 {[%emt 0:0:1]} Bxd4 {[%emt 0:0:29]} 16. Rxd4 {[%emt 0:0:4]
} Ne5 {[%emt 0:0:2]} 17. Qe3 {[%emt 0:0:20]} Bxf3 {[%emt 0:0:0]} 18. gxf3 {[%emt 0:0:3]} Qf6 {[%emt 0:0:40]} 19. Kh1 {[%emt 0:1:38]} Nxf3 {[%emt 0:2:38]} 20. Rdd1 {[%emt 0:0:1]} Rae8 {[%emt 0:1:20]} 21. Qxb6 {[%emt 0:0:44]} Qf4 {[%emt 0:0:12]} 22. Kg2 {[%emt 0:0:10]} Qg4+ {[%emt 0:0:0]} 23. Kf1 {[%emt 0:0:2]} Re5 {[%emt 0:1:56]} 24. h3 {[%emt 0:2:23]} Qxh3+ {[%emt 0:0:36]} 25. Ke2 {[%emt 0:0:1]} Rc8 {[%emt 0:1:8]} 26. Qe3 {[%emt 0:0:45]
} Ng5 {[%emt 0:0:1]} 27. Qxh3 {[%emt 0:0:9]} Nxh3 {[%emt 0:0:0]} 28. Rxd6 {[%emt 0:0:10]} Nf4+ {[%emt 0:0:7]} 29. Kf3 {[%emt 0:0:21]
} Nh3 {[%emt 0:0:7]} 30. Rd7 {[%emt 0:0:56]} Rf8 {[%emt 0:0:2]} 31. Rxb7 {[%emt 0:0:23]
} Kh8 {[%emt 0:0:14]} 32. Kg3 {[%emt 0:0:27]} Ng5 {[%emt 0:0:0]} 33. Bd5 {[%emt 0:0:17]} Ree8 {[%emt 0:0:29]} 34. f4 {[%emt 0:0:23]} Ne6 {[%emt 0:0:1]} 35. Bxe6 {[%emt 0:0:8]} Rxe6 {[%emt 0:0:2]} 36. Rd1 {[%emt 0:0:7]
} h5 {[%emt 0:0:4]} 37. Rd5 {[%emt 0:0:16]} 1-0

[Event "FIDE World Rapid-ch Open 2018"]
[White "Predke, Alexandr"]
[Black "Vorotnikov, Vladislav V"]
[Site "St. Petersburg"]
[Round "5.63"]
[Annotator "RC"]
[Result "1-0"]
[Date "2018.12.26"]
[WhiteElo "2622"]
[BlackElo "2417"]
[PlyCount "79"]
[TimeControl "900+10"]

1. e4 {[%emt 0:0:0]} e5 {[%emt 0:0:0]} 2. Nc3 {[%emt 0:0:0]} d6 {[%emt 0:0:0]} 3. g3 {[%emt 0:0:16]} Nc6 {[%emt 0:0:41]} 4. Bg2 {[%emt 0:0:2]} g6 {[%emt 0:0:19]} 5. d3 {[%emt 0:0:5]} Bg7 {[%emt 0:0:2]} 6. Be3 {[%emt 0:0:0]} Nf6 {[%emt 0:0:56]} 7. h3 {[%emt 0:0:5]} Be6 {[%emt 0:0:31]} 8. Nd5 {[%emt 0:0:2]} Bxd5 {[%emt 0:0:49]} 9. exd5 {[%emt 0:0:2]} Ne7 {[%emt 0:0:0]} 10. c4 {[%emt 0:0:17]} Nf5 {[%emt 0:0:13]} 11. Bg5 {[%emt 0:0:11]} h6 {[%emt 0:0:13]} 12. Bd2 {[%emt 0:0:2]} 0-0 {[%emt 0:0:19]} 13. Ne2 {[%emt 0:0:11]
} Re8 {[%emt 0:0:24]} 14. Qc2 {[%emt 0:0:14]} Nd4 {[%emt 0:0:0]} 15. Nxd4 {[%emt 0:0:3]} exd4+ {[%emt 0:0:1]} 16. Kf1 {[%emt 0:0:2]} Nd7 {[%emt 0:0:10]} 17. f4 {[%emt 0:0:51]} Qf6 {[%emt 0:0:45]} 18. Kf2 {[%emt 0:0:27]
} a5 {[%emt 0:0:36]} 19. Rae1 {[%emt 0:1:6]} b6 {[%emt 0:0:0]} 20. Qa4 {[%emt 0:1:47]} Rxe1 {[%emt 0:0:23]} 21. Rxe1 {[%emt 0:0:2]} Nc5 {[%emt 0:0:2]} 22. Qc2 {[%emt 0:0:2]} Qf5 {[%emt 0:1:2]} 23. Bf1 {[%emt 0:0:1]
} Bf6 {[%emt 0:0:28]} 24. Kg2 {[%emt 0:2:32]} h5 {[%emt 0:0:0]} 25. b3 {[%emt 0:0:11]} g5 {[%emt 0:2:13]} 26. fxg5 {[%emt 0:0:42]} Bxg5 {[%emt 0:0:3]} 27. Bxg5 Qxg5 {[%emt 0:0:2]} 28. h4 {[%emt 0:0:31]} Qg6 {[%emt 0:1:21]
} 29. Qe2 {[%emt 0:1:49]} Kh7 {[%emt 0:1:17]} 30. Qf3 {[%emt 0:0:0]} Kg7 {[%emt 0:2:27]} 31. Re7 {[%emt 0:3:59]} Kf8 {[%emt 0:0:5]} 32. Rxc7 {[%emt 0:0:3]} Re8 {[%emt 0:0:3]} 33. Qf4 {[%emt 0:0:1]} Re3 {[%emt 0:1:25]
} 34. Rc6 {[%emt 0:0:36]} Nxd3 {[%emt 0:0:21]} 35. Bxd3 {[%emt 0:0:29]
} Rxd3 {[%emt 0:0:7]} 36. Rxd6 Rd2+ {[%emt 0:0:47]} 37. Qxd2 {[%emt 0:0:47]
} Qxd6 {[%emt 0:0:2]} 38. Qxd4 {[%emt 0:0:2]} Qa3 {[%emt 0:0:0]} 39. d6 {[%emt 0:0:5]} Qxa2+ {[%emt 0:0:12]} 40. Kh3 1-0

[Event "FIDE World Rapid-ch Open 2018"]
[White "Anikonov, Dmitry"]
[Black "Levin, Evgeny A."]
[Site "St. Petersburg"]
[Round "5.64"]
[Annotator "ChessBase"]
[Result "1/2-1/2"]
[Date "2018.12.26"]
[WhiteElo "2371"]
[BlackElo "2516"]
[PlyCount "61"]
[TimeControl "900+10"]

1. d4 {[%emt 0:0:0]} Nf6 {[%emt 0:0:0]} 2. c4 {[%emt 0:0:0]} e6 {[%emt 0:0:0]} 3. g3 {[%emt 0:0:0]} c5 {[%emt 0:0:0]} 4. d5 {[%emt 0:0:1]} exd5 {[%emt 0:0:0]} 5. cxd5 {[%emt 0:0:1]} d6 {[%emt 0:0:0]} 6. Nc3 {[%emt 0:0:0]} g6 {[%emt 0:0:0]} 7. Nf3 {[%emt 0:0:2]} Bg7 {[%emt 0:0:0]} 8. Bg2 {[%emt 0:0:2]} 0-0 {[%emt 0:0:1]} 9. 0-0 {[%emt 0:0:2]} Re8 {[%emt 0:0:0]} 10. Bf4 {[%emt 0:0:3]} a6 {[%emt 0:0:7]} 11. a4 {[%emt 0:0:2]} Bf5 {[%emt 0:0:38]
} 12. Nd2 {[%emt 0:0:6]} Nh5 {[%emt 0:2:11]} 13. e4 {[%emt 0:0:0]} Nxf4 {[%emt 0:1:35]} 14. gxf4 {[%emt 0:0:1]} Bc8 {[%emt 0:0:47]} 15. Nc4 {[%emt 0:0:46]} Qf6 {[%emt 0:2:6]} 16. Qf3 {[%emt 0:1:24]} Nd7 {[%emt 0:0:28]
} 17. Rfe1 {[%emt 0:1:52]} Rb8 {[%emt 0:0:26]} 18. a5 {[%emt 0:0:0]} b5 {[%emt 0:1:4]} 19. axb6 {[%emt 0:0:2]} Nxb6 {[%emt 0:0:2]} 20. Na5 {[%emt 0:0:9]} Nd7 {[%emt 0:1:11]} 21. Re2 {[%emt 0:1:24]} Rxb2 {[%emt 0:2:42]
} 22. Rxb2 {[%emt 0:0:2]} Qxc3 {[%emt 0:0:2]} 23. Qxc3 {[%emt 0:0:1]
} Bxc3 {[%emt 0:0:1]} 24. Raa2 {[%emt 0:0:1]} Bxb2 {[%emt 0:0:0]} 25. Rxb2 {[%emt 0:0:2]} Nf6 {[%emt 0:0:13]} 26. Nc4 {[%emt 0:1:45]} Nxe4 {[%emt 0:1:7]} 27. Rb8 {[%emt 0:1:21]} Kg7 {[%emt 0:0:25]} 28. Bxe4 {[%emt 0:3:37]
} Rxe4 {[%emt 0:0:4]} 29. Nxd6 {[%emt 0:0:1]} Re1+ {[%emt 0:0:0]} 30. Kg2 {[%emt 0:0:1]} Bf5 {[%emt 0:1:53]} 31. Nxf5+ {[%emt 0:0:54]
} 1/2-1/2

[Event "FIDE World Rapid-ch Open 2018"]
[White "Steinberg, Nitzan"]
[Black "Teske, Henrik"]
[Site "St. Petersburg"]
[Round "5.65"]
[Annotator "ChessBase"]
[Result "0-1"]
[Date "2018.12.26"]
[WhiteElo "2532"]
[BlackElo "2483"]
[PlyCount "218"]
[TimeControl "900+10"]

1. e4 {[%emt 0:0:0]} e6 {[%emt 0:0:0]} 2. d4 {[%emt 0:0:0]} d5 {[%emt 0:0:0]} 3. e5 {[%emt 0:0:0]} c5 {[%emt 0:0:0]} 4. c3 {[%emt 0:0:0]} Nc6 {[%emt 0:0:0]
} 5. Nf3 {[%emt 0:0:2]} Bd7 {[%emt 0:0:3]} 6. Be2 {[%emt 0:0:0]} Rc8 {[%emt 0:0:3]} 7. 0-0 {[%emt 0:0:24]} Nge7 {[%emt 0:0:5]} 8. Na3 {[%emt 0:0:10]} Nf5 {[%emt 0:0:19]} 9. Nc2 {[%emt 0:0:15]} cxd4 {[%emt 0:0:9]
} 10. cxd4 {[%emt 0:0:7]} Qb6 {[%emt 0:0:54]} 11. Rb1 {[%emt 0:0:33]
} Be7 {[%emt 0:0:20]} 12. Bd3 {[%emt 0:1:16]} Nb4 {[%emt 0:0:0]} 13. Nxb4 {[%emt 0:0:8]} Qxb4 {[%emt 0:0:44]} 14. Kh1 {[%emt 0:1:32]} Bb5 {[%emt 0:3:17]} 15. g4 {[%emt 0:4:9]} Bxd3 {[%emt 0:2:58]} 16. Qxd3 {[%emt 0:0:3]
} Nh4 {[%emt 0:0:11]} 17. Nxh4 {[%emt 0:1:30]} Bxh4 {[%emt 0:0:0]} 18. f4 {[%emt 0:1:42]} Qc4 {[%emt 0:1:1]} 19. Qf3 {[%emt 0:0:34]} Be7 {[%emt 0:1:18]} 20. Be3 {[%emt 0:0:10]} Qxa2 {[%emt 0:0:11]} 21. f5 {[%emt 0:0:28]
} Qb3 {[%emt 0:0:25]} 22. Rbe1 {[%emt 0:2:31]} Kd7 {[%emt 0:0:0]} 23. g5 {[%emt 0:0:9]} g6 {[%emt 0:0:32]} 24. fxe6+ {[%emt 0:0:29]} fxe6 {[%emt 0:0:2]} 25. Qh3 {[%emt 0:0:13]} Rcf8 {[%emt 0:0:35]} 26. Rf6 {[%emt 0:0:57]
} Bxf6 {[%emt 0:0:28]} 27. exf6 {[%emt 0:0:1]} Qd3 {[%emt 0:0:0]} 28. Kg1 {[%emt 0:0:51]} Rf7 {[%emt 0:0:20]} 29. Rc1 {[%emt 0:0:22]} Qe4 {[%emt 0:1:2]} 30. Bf2 {[%emt 0:0:27]} Rc8 {[%emt 0:0:8]} 31. Rxc8 {[%emt 0:0:31]
} Kxc8 {[%emt 0:0:2]} 32. Qa3 {[%emt 0:0:26]} Qg4+ {[%emt 0:0:0]} 33. Bg3 {[%emt 0:0:0]} Qxd4+ {[%emt 0:0:6]} 34. Kg2 {[%emt 0:0:17]
} Qe4+ {[%emt 0:0:41]} 35. Kh3 {[%emt 0:0:5]} Qf5+ {[%emt 0:0:9]} 36. Kg2 {[%emt 0:0:1]} Qc2+ {[%emt 0:0:7]} 37. Kh3 {[%emt 0:0:5]} e5 {[%emt 0:0:0]} 38. Qd6 {[%emt 0:0:18]} Qf5+ {[%emt 0:0:7]} 39. Kg2 {[%emt 0:0:1]} Qxg5 {[%emt 0:1:2]} 40. Qe6+ {[%emt 0:0:17]} Rd7 {[%emt 0:0:1]} 41. f7 {[%emt 0:0:13]
} Qd2+ {[%emt 0:0:3]} 42. Bf2 {[%emt 0:0:14]} Qg5+ {[%emt 0:0:0]} 43. Bg3 {[%emt 0:0:8]} Qd2+ {[%emt 0:0:5]} 44. Bf2 {[%emt 0:0:1]} Qf4 {[%emt 0:0:18]} 45. Qe8+ {[%emt 0:0:16]} Rd8 {[%emt 0:0:1]} 46. Bg3 {[%emt 0:0:28]
} Qe4+ {[%emt 0:0:8]} 47. Kg1 {[%emt 0:0:4]} Qb1+ {[%emt 0:0:0]} 48. Kg2 {[%emt 0:0:3]} Qe4+ {[%emt 0:0:6]} 49. Kg1 {[%emt 0:0:1]} Qb1+ {[%emt 0:0:58]} 50. Kg2 {[%emt 0:0:1]} Qc2+ {[%emt 0:0:4]} 51. Kg1 {[%emt 0:0:5]
} Qc5+ {[%emt 0:0:23]} 52. Kg2 {[%emt 0:0:1]} d4 {[%emt 0:0:0]} 53. Bh4 {[%emt 0:0:46]} Qc2+ {[%emt 0:0:25]} 54. Kg1 {[%emt 0:0:3]} Qb1+ {[%emt 0:0:7]} 55. Kf2 {[%emt 0:0:12]} Qf5+ {[%emt 0:0:9]} 56. Ke1 {[%emt 0:0:20]
} Qe4+ {[%emt 0:0:2]} 57. Kd2 {[%emt 0:0:2]} Qxh4 {[%emt 0:0:0]} 58. f8=Q {[%emt 0:0:2]} Rxe8 {[%emt 0:0:19]} 59. Qxe8+ {[%emt 0:0:0]} Qd8 {[%emt 0:0:8]} 60. Qxe5 {[%emt 0:0:4]} a6 {[%emt 0:0:15]} 61. b4 {[%emt 0:0:13]} Qd7 {[%emt 0:0:5]} 62. Qc5+ {[%emt 0:0:6]} Kb8 {[%emt 0:0:0]} 63. Qf8+ {[%emt 0:0:2]} Ka7 {[%emt 0:0:1]} 64. Qc5+ {[%emt 0:0:7]
} b6 {[%emt 0:0:1]} 65. Qe5 {[%emt 0:0:1]} d3 {[%emt 0:0:4]} 66. h4 {[%emt 0:0:5]
} Kb7 {[%emt 0:0:14]} 67. Qe4+ {[%emt 0:0:2]} Kc7 {[%emt 0:0:0]} 68. Qc4+ {[%emt 0:0:7]} Kb7 {[%emt 0:0:3]} 69. Qe4+ {[%emt 0:0:2]} Ka7 {[%emt 0:0:1]} 70. Qe5 {[%emt 0:0:1]} Kb7 {[%emt 0:1:0]} 71. Qe4+ {[%emt 0:0:1]
} Ka7 {[%emt 0:0:0]} 72. Qe5 {[%emt 0:0:1]} Qc8 {[%emt 0:0:0]} 73. Qe7+ {[%emt 0:0:16]} Qb7 {[%emt 0:0:1]} 74. Qd8 {[%emt 0:0:12]} Qf7 {[%emt 0:0:20]} 75. Kxd3 {[%emt 0:0:33]} Kb7 {[%emt 0:0:0]} 76. Qh8 {[%emt 0:0:52]
} Kc6 {[%emt 0:0:3]} 77. Kc3 {[%emt 0:0:18]} Qf3+ {[%emt 0:0:0]} 78. Kb2 {[%emt 0:0:5]} Qe2+ {[%emt 0:0:8]} 79. Kc3 {[%emt 0:0:16]} Qe1+ {[%emt 0:0:4]} 80. Kd3 {[%emt 0:0:9]} Qd1+ {[%emt 0:0:11]} 81. Ke3 {[%emt 0:0:10]
} Qd7 {[%emt 0:0:7]} 82. Qe5 {[%emt 0:0:21]} Qh3+ {[%emt 0:0:0]} 83. Kd2 {[%emt 0:0:6]} Qg2+ {[%emt 0:0:5]} 84. Kc3 {[%emt 0:0:12]} Qf3+ {[%emt 0:0:2]} 85. Kb2 {[%emt 0:0:4]} Qd5 {[%emt 0:0:15]} 86. Qe8+ {[%emt 0:0:10]
} Qd7 {[%emt 0:0:4]} 87. Qe5 {[%emt 0:0:7]} Qd2+ {[%emt 0:0:0]} 88. Ka3 {[%emt 0:0:9]} a5 {[%emt 0:0:10]} 89. b5+ {[%emt 0:0:28]} Kd7 {[%emt 0:0:2]} 90. Qg7+ {[%emt 0:0:3]} Ke6 {[%emt 0:0:8]} 91. Qxh7 {[%emt 0:0:23]
} Qb4+ {[%emt 0:0:1]} 92. Ka2 {[%emt 0:0:0]} Qa4+ {[%emt 0:0:0]} 93. Kb2 {[%emt 0:0:3]} Qxb5+ {[%emt 0:0:1]} 94. Kc3 {[%emt 0:0:3]
} Qc5+ {[%emt 0:0:3]} 95. Kb2 {[%emt 0:0:4]} Qd4+ {[%emt 0:0:5]} 96. Ka2 {[%emt 0:0:6]} Qd2+ {[%emt 0:0:15]} 97. Kb3 {[%emt 0:0:6]} Qd3+ {[%emt 0:0:0]} 98. Kb2 {[%emt 0:0:1]} a4 {[%emt 0:0:30]} 99. Qg8+ {[%emt 0:0:2]} Kf5 {[%emt 0:0:3]} 100. Qf7+ {[%emt 0:0:8]} Kg4 {[%emt 0:0:2]} 101. Qf6 {[%emt 0:0:23]
} b5 {[%emt 0:0:14]} 102. Qg5+ {[%emt 0:0:12]} Kh3 {[%emt 0:0:0]} 103. h5 {[%emt 0:0:25]} Qe2+ {[%emt 0:0:6]} 104. Kc3 {[%emt 0:0:1]} gxh5 {[%emt 0:0:17]} 105. Qf5+ {[%emt 0:0:6]} Kg2 {[%emt 0:0:19]} 106. Qg5+ {[%emt 0:0:6]} Qg4 {[%emt 0:0:31]} 107. Qxb5 {[%emt 0:0:6]} Qf3+ {[%emt 0:0:0]} 108. Kd4 {[%emt 0:0:28]} Qf4+ {[%emt 0:0:6]} 109. Kc3 {[%emt 0:0:0]} Qe3+ {[%emt 0:0:9] Kd4} 0-1

[Event "FIDE World Rapid-ch Open 2018"]
[White "Yakubboev, Nodirbek"]
[Black "Huzman, Alexander"]
[Site "St. Petersburg"]
[Round "5.66"]
[Annotator "ChessBase"]
[Result "1/2-1/2"]
[Date "2018.12.26"]
[WhiteElo "2556"]
[BlackElo "2580"]
[PlyCount "64"]
[TimeControl "900+10"]

1. d4 {[%emt 0:0:0]} Nf6 {[%emt 0:0:0]} 2. Bg5 {[%emt 0:0:6]} d5 {[%emt 0:0:0]
} 3. e3 {[%emt 0:0:4]} c5 {[%emt 0:0:1]} 4. Bxf6 {[%emt 0:0:0]} gxf6 {[%emt 0:0:1]} 5. dxc5 {[%emt 0:1:16]} e6 {[%emt 0:0:5]} 6. c4 {[%emt 0:0:42]
} dxc4 {[%emt 0:0:2]} 7. Qa4+ {[%emt 0:2:1]} Nd7 {[%emt 0:0:0]} 8. Bxc4 {[%emt 0:2:13]} Bxc5 {[%emt 0:0:3]} 9. Nf3 {[%emt 0:0:14]} 0-0 {[%emt 0:0:43]} 10. 0-0 {[%emt 0:0:5]} Nb6 {[%emt 0:0:41]} 11. Qc2 {[%emt 0:0:58]
} Nxc4 {[%emt 0:1:54]} 12. Qxc4 {[%emt 0:0:2]} b6 {[%emt 0:0:0]} 13. Nc3 {[%emt 0:2:7]} Bb7 {[%emt 0:0:2]} 14. Qh4 {[%emt 0:0:36]} Qe7 {[%emt 0:3:7]} 15. Ne4 {[%emt 0:1:49]} Bxe4 {[%emt 0:0:2]} 16. Qxe4 {[%emt 0:0:1]
} f5 {[%emt 0:0:4]} 17. Qf4 {[%emt 0:0:54]} Qf6 {[%emt 0:0:0]} 18. e4 {[%emt 0:1:30]} Rfd8 {[%emt 0:0:17]} 19. exf5 {[%emt 0:0:22]} Qxf5 {[%emt 0:0:5]} 20. Qxf5 {[%emt 0:0:6]} exf5 {[%emt 0:0:1]} 21. Rfd1 {[%emt 0:0:4]} Kg7 {[%emt 0:0:12]} 22. Kf1 {[%emt 0:0:16]} Kf6 {[%emt 0:0:0]} 23. Rac1 {[%emt 0:0:5]} a5 {[%emt 0:0:12]} 24. Ne1 {[%emt 0:0:35]} Rac8 {[%emt 0:2:49]} 25. Nd3 {[%emt 0:0:36]} Bd4 {[%emt 0:0:1]} 26. b3 {[%emt 0:0:19]
} b5 {[%emt 0:0:4]} 27. Nc5 {[%emt 0:0:24]} Bxc5 {[%emt 0:0:0]} 28. Rxd8 {[%emt 0:0:2]} Rxd8 {[%emt 0:0:1]} 29. Rxc5 {[%emt 0:0:1]} Rd2 {[%emt 0:0:1]} 30. Rxb5 {[%emt 0:0:33]} Rxa2 {[%emt 0:0:1]} 31. g3 {[%emt 0:0:2]
} a4 {[%emt 0:0:6]} 32. bxa4 {[%emt 0:0:12]} Rxa4 {[%emt 0:0:0]} 1/2-1/2

[Event "FIDE World Rapid-ch Open 2018"]
[White "Fedoseev, Vladimir"]
[Black "Vastrukhin, Oleg"]
[Site "St. Petersburg"]
[Round "5.67"]
[Annotator "RC"]
[Result "1-0"]
[Date "2018.12.26"]
[WhiteElo "2719"]
[BlackElo "2413"]
[PlyCount "79"]
[TimeControl "900+10"]

1. d4 {[%emt 0:0:0]} g6 {[%emt 0:0:0]} 2. Nf3 {[%emt 0:0:0]} Bg7 {[%emt 0:0:0]
} 3. e4 {[%emt 0:0:0]} c6 {[%emt 0:0:0]} 4. Nc3 {[%emt 0:0:0]} d5 {[%emt 0:0:1]} 5. e5 {[%emt 0:0:0]} Bg4 {[%emt 0:0:6]} 6. h3 {[%emt 0:0:8]
} Bxf3 {[%emt 0:0:3]} 7. Qxf3 {[%emt 0:0:2]} e6 {[%emt 0:0:0]} 8. Be2 {[%emt 0:0:34]} Ne7 {[%emt 0:0:4]} 9. Bg5 {[%emt 0:0:8]} h6 {[%emt 0:0:49]
} 10. Bf6 {[%emt 0:0:33]} Bxf6 {[%emt 0:1:4]} 11. Qxf6 {[%emt 0:0:14]
} Rh7 {[%emt 0:1:26]} 12. Bd3 {[%emt 0:0:43]} Nd7 {[%emt 0:0:0]} 13. Qf4 {[%emt 0:0:7]} Nf5 {[%emt 0:2:3]} 14. g4 {[%emt 0:1:9]} Nh4 {[%emt 0:0:34]} 15. 0-0-0 {[%emt 0:0:21]} Qg5 {[%emt 0:0:11]} 16. Ne2 {[%emt 0:1:45]
} Ke7 {[%emt 0:4:7]} 17. Qd2 {[%emt 0:0:43]} Nf3 {[%emt 0:0:0]} 18. Qe3 {[%emt 0:0:2]} c5 {[%emt 0:0:26]} 19. c3 {[%emt 0:1:9]} cxd4 {[%emt 0:0:57]} 20. cxd4 {[%emt 0:0:1]} Rc8+ {[%emt 0:0:1]} 21. Kb1 {[%emt 0:0:4]
} Qxe3 {[%emt 0:0:6]} 22. fxe3 {[%emt 0:0:2]} Rhh8 {[%emt 0:0:0]} 23. Rhf1 {[%emt 0:0:38]} Nh4 {[%emt 0:0:6]} 24. e4 {[%emt 0:1:38]} Nb6 {[%emt 0:0:2]} 25. Rf2 {[%emt 0:0:14]} Rcd8 {[%emt 0:1:14]} 26. Nc3 {[%emt 0:0:18]
} Rhf8 {[%emt 0:1:29]} 27. Nb5 {[%emt 0:0:16]} Nc8 {[%emt 0:0:0]} 28. exd5 {[%emt 0:0:6]} Rxd5 {[%emt 0:0:2]} 29. Bc4 {[%emt 0:0:5]} Rd7 {[%emt 0:0:13]} 30. Bb3 {[%emt 0:1:4]} g5 {[%emt 0:0:50]} 31. Rf6 {[%emt 0:0:16]
} Ng6 {[%emt 0:0:4]} 32. Bxe6 {[%emt 0:0:8]} fxe6 {[%emt 0:0:0]} 33. Rxg6 {[%emt 0:0:2]} a6 {[%emt 0:0:3]} 34. Nc3 {[%emt 0:0:13]} Nb6 {[%emt 0:0:28]} 35. Ne4 {[%emt 0:0:12]} Nc4 {[%emt 0:0:32]} 36. Nc5 {[%emt 0:0:7]
} Ne3 {[%emt 0:0:3]} 37. Rxe6+ {[%emt 0:0:7]} Kd8 {[%emt 0:0:0]} 38. Nxd7 {[%emt 0:0:2]} Kxd7 {[%emt 0:0:9]} 39. Rd6+ {[%emt 0:0:0]} Ke7 {[%emt 0:0:1]} 40. Rc1 {[%emt 0:0:1]} 1-0